fUSD/lending_fUSD_20260408
["ID","MTS","AMOUNT","RATE_DAILY","PERIOD"]
[420073081,1775649072216,-201.410641,0.0003,7]
[420073082,1775649072227,-151.0,0.0003,7]
[420073083,1775649072237,-2027.179466,0.0003,7]
[420073084,1775649072247,-151.0,0.0003,7]
[420073085,1775649072257,-289.286912,0.0003,7]
[420073086,1775649072267,-1977.501114,0.0003,7]
[420073087,1775649072277,-201.410641,0.0003,7]
[420073088,1775649072287,-151.0,0.0003,7]
[420073089,1775649072297,-2027.179466,0.0003,7]
[420073090,1775649072307,-1977.501114,0.0003,7]
[420073091,1775649072317,-201.410641,0.0003,7]
[420073092,1775649072326,-151.0,0.0003,7]
[420073093,1775649072336,-723.953235,0.0003,7]
[420073094,1775649072347,-2027.179466,0.0003,7]
[420073095,1775649072357,-151.0,0.0003,7]
[420073096,1775649072367,-723.953235,0.0003,7]
[420073097,1775649072377,-911.280891,0.0003,7]
[420073098,1775649072387,-151.372749,0.0003,7]
[420073099,1775649072397,-151.352849,0.0003,7]
[420073100,1775649072407,-155.998488,0.0003,7]
[420073101,1775649072418,-723.953235,0.0003,7]
[420073102,1775649072428,-911.280891,0.0003,7]
[420073103,1775649072438,-723.953235,0.0003,7]
[420073104,1775649072448,-155.998488,0.0003,7]
[420073105,1775649072458,-1659.646483,0.0003,7]
[420073106,1775649072468,-911.280891,0.0003,7]
[420073107,1775649072478,-155.998488,0.0003,7]
[420073108,1775649072488,-151.0,0.0003,7]
[420073109,1775649072498,-1659.646483,0.0003,7]
[420073110,1775649072508,-911.280891,0.0003,7]
[420073111,1775649072519,-155.998488,0.0003,7]
[420073112,1775649072529,-151.0,0.0003,7]
[420073113,1775649072540,-1659.646483,0.0003,7]
[420073114,1775649072551,-151.0,0.0003,7]
[420073115,1775649072560,-1659.646483,0.0003,7]
[420073116,1775649072572,-9553.605226,0.0003,7]
[420073117,1775649072582,-686.980322,0.0003,7]
[420073118,1775649072593,-9553.605226,0.0003,7]
[420073119,1775649072603,-686.980322,0.0003,7]
[420073120,1775649072614,-151.646467,0.0003,7]
[420073121,1775649072623,-9553.605226,0.0003,7]
[420073122,1775649072634,-1255.167093,0.0003,7]
[420073123,1775649072644,-553.999157,0.0003,7]
[420073124,1775649072654,-686.980322,0.0003,7]
[420073125,1775649072663,-9553.605226,0.0003,7]
[420073126,1775649072673,-1255.167093,0.0003,7]
[420073127,1775649072683,-553.999157,0.0003,7]
[420073128,1775649072693,-686.980322,0.0003,7]
[420073129,1775649072703,-1255.167093,0.0003,7]
[420073130,1775649072713,-525.278665,0.0003,7]
[420073131,1775649072724,-553.999157,0.0003,7]
[420073132,1775649072734,-1255.167093,0.0003,7]
[420073133,1775649072744,-525.278665,0.0003,7]
[420073134,1775649072754,-553.999157,0.0003,7]
[420073135,1775649072764,-911.817401,0.0003,7]
[420073136,1775649072774,-151.0,0.0003,7]
[420073137,1775649072784,-525.278665,0.0003,7]
[420073138,1775649072794,-151.0,0.0003,7]
[420073139,1775649072806,-525.278665,0.0003,7]
[420073140,1775649072816,-200.0,0.0003,2]
[420073141,1775649072826,-151.0,0.0003,7]
[420073142,1775649072836,-557.116664,0.0003,7]
[420073143,1775649072846,-151.0,0.0003,7]
[420073144,1775649072855,-151.0,0.0003,7]
[420073145,1775649072866,-1858.078494,0.0003,7]
[420073146,1775649072875,-911.817401,0.0003,7]
[420073147,1775649072885,-1058.67473,0.0003,7]
[420073148,1775649072895,-151.0,0.0003,7]
[420073149,1775649072910,-530.018044,0.0003,7]
[420073150,1775649072921,-557.116664,0.0003,7]
[420073151,1775649072931,-701.508011,0.0003,7]
[420073152,1775649072943,-1858.078494,0.0003,7]
[420073153,1775649072954,-911.817401,0.0003,7]
[420073154,1775649072963,-1058.67473,0.0003,7]
[420073155,1775649072973,-530.018044,0.0003,7]
[420073156,1775649072983,-557.116664,0.0003,7]
[420073157,1775649072994,-701.508011,0.0003,7]
[420073158,1775649073005,-211.117548,0.0003,7]
[420073159,1775649073017,-1858.078494,0.0003,7]
[420073160,1775649073029,-911.817401,0.0003,7]
[420073161,1775649073041,-400.719158,0.0003,7]
[420073162,1775649073053,-530.018044,0.0003,7]
[420073163,1775649073065,-1058.67473,0.0003,7]
[420073164,1775649073077,-326.921133,0.0003,7]
[420073165,1775649073089,-557.116664,0.0003,7]
[420073166,1775649073101,-701.508011,0.0003,7]
[420073167,1775649073113,-211.117548,0.0003,7]
[420073168,1775649073125,-1858.078494,0.0003,7]
[420073169,1775649073137,-151.0,0.0003,7]
[420073170,1775649073148,-400.719158,0.0003,7]
[420073171,1775649073160,-530.018044,0.0003,7]
[420073172,1775649073171,-1058.67473,0.0003,7]
[420073173,1775649073184,-326.921133,0.0003,7]
[420073174,1775649073196,-701.508011,0.0003,7]
[420073175,1775649073210,-211.117548,0.0003,7]
[420073176,1775649073222,-151.0,0.0003,7]
[420073177,1775649073234,-151.0,0.0003,7]
[420073178,1775649073246,-151.0,0.0003,7]
[420073179,1775649073258,-400.719158,0.0003,7]
[420073180,1775649073269,-151.0,0.0003,7]
[420073181,1775649073280,-326.921133,0.0003,7]
[420073182,1775649073291,-211.117548,0.0003,7]
[420073183,1775649073302,-151.0,0.0003,7]
[420073184,1775649073313,-151.0,0.0003,7]
[420073185,1775649073325,-151.0,0.0003,7]
[420073186,1775649073336,-200.044819,0.0003,7]
[420073187,1775649073348,-400.719158,0.0003,7]
[420073188,1775649073360,-200.34394,0.0003,7]
[420073189,1775649073371,-326.921133,0.0003,7]
[420073190,1775649073382,-1372.374942,0.0003,7]
[420073191,1775649073392,-151.0,0.0003,7]
[420073192,1775649073403,-151.0,0.0003,7]
[420073193,1775649073414,-9123.956641,0.0003,7]
[420073194,1775649073425,-200.044819,0.0003,7]
[420073195,1775649073437,-157.215334,0.0003,7]
[420073196,1775649073447,-151.0,0.0003,7]
[420073197,1775649073459,-1372.374942,0.0003,7]
[420073198,1775649073470,-200.044819,0.0003,7]
[420073199,1775649073481,-9123.956641,0.0003,7]
[420073200,1775649073493,-157.215334,0.0003,7]
[420073201,1775649073504,-1372.374942,0.0003,7]
[420073202,1775649073515,-9123.956641,0.0003,7]
[420073203,1775649073526,-200.044819,0.0003,7]
[420073204,1775649073537,-157.215334,0.0003,7]
[420073205,1775649073548,-1372.374942,0.0003,7]
[420073206,1775649073559,-9123.956641,0.0003,7]
[420073207,1775649073571,-157.215334,0.0003,7]
[420073208,1775649073583,-570.868716,0.0003,7]
[420073209,1775649073596,-151.0,0.0003,7]
[420073210,1775649073608,-1352.119912,0.0003,7]
[420073211,1775649073620,-570.868716,0.0003,7]
[420073212,1775649073631,-151.0,0.0003,7]
[420073213,1775649073643,-1352.119912,0.0003,7]
[420073214,1775649073655,-570.868716,0.0003,7]
[420073215,1775649073667,-231.156641,0.0003,7]
[420073216,1775649073679,-1352.119912,0.0003,7]
[420073217,1775649073690,-570.868716,0.0003,7]
[420073218,1775649073702,-151.0,0.0003,7]
[420073219,1775649073713,-1352.119912,0.0003,7]
[420073220,1775649073725,-151.0,0.0003,7]
[420073221,1775649073737,-1783.253125,0.0003,7]
[420073222,1775649073749,-1783.253125,0.0003,7]
[420073223,1775649073760,-151.0,0.0003,7]
[420073224,1775649073781,-151.0,0.0003,7]
[420073225,1775649073793,-151.0,0.0003,7]
[420073226,1775649073805,-1783.253125,0.0003,7]
[420073227,1775649073817,-1783.253125,0.0003,7]
[420073228,1775649073829,-167.979442,0.0003,7]
[420073229,1775649073841,-245.422656,0.0003,7]
[420073230,1775649073853,-167.979442,0.0003,7]
[420073231,1775649073865,-245.422656,0.0003,7]
[420073232,1775649073877,-155.412458,0.0003,7]
[420073233,1775649073889,-167.979442,0.0003,7]
[420073234,1775649073900,-245.422656,0.0003,7]
[420073235,1775649073911,-151.0,0.0003,7]
[420073236,1775649073924,-155.412458,0.0003,7]
[420073237,1775649073937,-151.680732,0.0003,7]
[420073238,1775649073949,-167.979442,0.0003,7]
[420073239,1775649073962,-245.422656,0.0003,7]
[420073240,1775649073974,-151.0,0.0003,7]
[420073241,1775649073986,-1238.577321,0.0003,7]
[420073242,1775649073999,-151.0,0.0003,7]
[420073243,1775649074010,-1238.577321,0.0003,7]
[420073244,1775649074023,-151.0,0.0003,7]
[420073245,1775649074035,-151.0,0.0003,7]
[420073246,1775649074048,-1238.577321,0.0003,7]
[420073247,1775649074060,-153.621156,0.0003,7]
[420073248,1775649074072,-1085.941628,0.0003,7]
[420073249,1775649074084,-151.0,0.0003,7]
[420073250,1775649074096,-155.412458,0.0003,7]
[420073251,1775649074107,-1238.577321,0.0003,7]
[420073252,1775649074118,-750.349039,0.0003,5]
[420073253,1775649074129,-151.0,0.0003,7]
[420073254,1775649074140,-1085.941628,0.0003,7]
[420073255,1775649074151,-151.0,0.0003,7]
[420073256,1775649074161,-155.412458,0.0003,7]
[420073257,1775649074173,-151.0,0.0003,7]
[420073258,1775649074183,-750.349039,0.0003,5]
[420073259,1775649074194,-151.0,0.0003,7]
[420073260,1775649074205,-151.0,0.0003,7]
[420073261,1775649074215,-151.0,0.0003,7]
[420073262,1775649074225,-1085.941628,0.0003,7]
[420073263,1775649074235,-151.0,0.0003,7]
[420073264,1775649074246,-750.349039,0.0003,5]
[420073265,1775649074256,-151.0,0.0003,7]
[420073266,1775649074267,-187.115827,0.0003,7]
[420073267,1775649074278,-1320.429681,0.0003,7]
[420073268,1775649074289,-1085.941628,0.0003,7]
[420073269,1775649074300,-750.349039,0.0003,5]
[420073270,1775649074310,-1320.429681,0.0003,7]
[420073271,1775649074321,-633.587214,0.0003,7]
[420073272,1775649074331,-2958.072628,0.0003,7]
[420073273,1775649074342,-151.0,0.0003,7]
[420073274,1775649074352,-633.587214,0.0003,7]
[420073275,1775649074362,-1320.429681,0.0003,7]
[420073276,1775649074373,-2958.072628,0.0003,7]
[420073277,1775649074383,-151.0,0.0003,7]
[420073278,1775649074394,-633.587214,0.0003,7]
[420073279,1775649074404,-1320.429681,0.0003,7]
[420073280,1775649074415,-2958.072628,0.0003,7]
[420073281,1775649074425,-633.587214,0.0003,7]
[420073282,1775649074436,-2958.072628,0.0003,7]
[420073283,1775649074446,-151.0,0.0003,7]
[420073284,1775649074456,-593.38,0.00030027,120]
[420073285,1775649074467,-771.26,0.000301,3]
[420073286,1775649074477,-340.0332,0.000301,2]
[420073287,1775649074488,-161.65570134,0.000301,3]
[420073288,1775649074498,-223.26792368,0.000301,2]
[420073289,1775649074509,-150.67997122,0.0003013,120]
[420073290,1775649074520,-1084.36151393,0.0003013,2]
[420073291,1775649075055,-225.14972641,0.0003013,120]
[420073292,1775649075066,-13988.87723371,0.0003013,2]
[420073293,1775649075077,-640.43799248,0.0003013,2]
[420073294,1775649075087,-203.73928446,0.0003013,2]
[420073295,1775649075097,-7807.71745951,0.0003013,2]
[420073296,1775649075108,-1000.0,0.00030137,120]
[420073297,1775649075118,-880.68,0.00030137,2]
[420073298,1775649075127,-681.222555,0.00030137,7]
[420073299,1775649075140,-681.222555,0.00030137,7]
[420073300,1775649075152,-681.222555,0.00030137,7]
[420073301,1775649075163,-681.222555,0.00030137,7]
[420073302,1775649075173,-681.222555,0.00030137,7]
[420073303,1775649075183,-681.222555,0.00030137,7]
[420073304,1775649075194,-681.222555,0.00030137,7]
[420073305,1775649075205,-681.222555,0.00030137,7]
[420073306,1775649075216,-367.0,0.00030137,120]
[420073307,1775649075227,-1993.0,0.00030137,120]
[420073308,1775649075239,-500.0,0.00030137,120]
[420073309,1775649075249,-250.0,0.00030137,60]
[420073310,1775649075260,-250.0,0.00030137,60]
[420073311,1775649075271,-250.0,0.00030137,30]
[420073312,1775649075281,-500.0,0.00030137,30]
[420073313,1775649075291,-515.0,0.00030137,120]
[420073314,1775649075302,-1500.0,0.00030137,5]
[420073315,1775649075313,-347.53453484,0.00030137,5]
[420073316,1775649075325,-1372.61,0.00030153,30]
[420073317,1775649075335,-7092.7,0.00030195,2]
[420073318,1775649075346,-15689.40227403,0.000302,2]
[420073319,1775649075356,-165.0,0.00030217,120]
[420073320,1775649075367,-634.1,0.00030261,60]
[420073321,1775649075376,-151.0,0.000303,5]
[420073322,1775649075387,-1372.61,0.00030306,30]
[420073323,1775649075397,-3899.38,0.00030356,120]
[420073324,1775649075408,-593.38,0.00030356,120]
[420073325,1775649075417,-1347.0,0.00030387,2]
[420073326,1775649075427,-3524.0,0.00030387,2]
[420073327,1775649075438,-622.0,0.00030387,2]
[420073328,1775649075448,-1264.0,0.00030387,2]
[420073329,1775649075459,-3772.0,0.00030387,2]
[420073330,1775649075470,-415.0,0.00030387,2]
[420073331,1775649075481,-514.48,0.00030411,120]
[420073332,1775649075492,-1116.0,0.00030439,5]
[420073333,1775649075506,-1372.61,0.00030459,30]
[420073334,1775649075517,-2000.0,0.000305,30]
[420073335,1775649075527,-219.52130607,0.000306,30]
[420073336,1775649075538,-1258.5315,0.000306,2]
[420073337,1775649075548,-1372.61,0.00030612,30]
[420073338,1775649075560,-518.13546704,0.00030685,2]
[420073339,1775649075571,-1078.39616773,0.00030685,5]
[420073340,1775649075580,-593.38,0.00030685,120]
[420073341,1775649075590,-2015.99,0.000307,120]
[420073342,1775649075600,-368.0,0.00030736,120]
[420073343,1775649075611,-221.0,0.00030736,120]
[420073344,1775649075620,-166.0,0.00030736,120]
[420073345,1775649075631,-166.0,0.00030736,120]
[420073346,1775649075641,-1372.61,0.00030765,30]
[420073347,1775649075652,-250.0,0.000308,30]
[420073348,1775649075662,-250.0,0.00030813,2]
[420073349,1775649075673,-150.0,0.00030834,2]
[420073350,1775649075684,-1625.09963193,0.0003084,2]
[420073351,1775649075695,-201.0,0.0003084,30]
[420073352,1775649075706,-593.38,0.00030849,120]
[420073353,1775649075717,-1098.8,0.00030852,2]
[420073354,1775649075727,-1000.0,0.00030875,120]
[420073355,1775649075738,-160.0,0.000309,120]
[420073356,1775649075748,-1372.61,0.00030918,30]
[420073357,1775649075759,-500.0,0.00030959,2]
[420073358,1775649075770,-1667.83,0.00030969,2]
[420073359,1775649075792,-500.0,0.00031,30]
[420073360,1775649075805,-341.0,0.00031,120]
[420073361,1775649075816,-347.24048364,0.00031,5]
[420073362,1775649075829,-52078.33541429,0.00031,2]
[420073363,1775649075841,-193.21656307,0.00031,30]
[420073364,1775649075852,-151.0,0.00031,2]
[420073365,1775649075864,-160.0,0.00031,120]
[420073366,1775649075875,-519.0,0.00031,64]
[420073367,1775649075886,-354.54,0.00031,120]
[420073368,1775649075897,-27800.94261706,0.00031,120]
[420073369,1775649075909,-396.44,0.00031,120]
[420073370,1775649075920,-200.0,0.00031,7]
[420073371,1775649075930,-443.8,0.00031,120]
[420073372,1775649075940,-4257.28,0.00031,7]
[420073373,1775649075952,-700.0,0.00031,2]
[420073374,1775649075964,-41747.0,0.00031,2]
[420073375,1775649075975,-2443.24,0.00031002,30]
[420073376,1775649075986,-1000.0,0.00031039,120]
[420073377,1775649075997,-1372.61,0.00031071,30]
[420073378,1775649076008,-3899.38,0.00031096,120]
[420073379,1775649076020,-593.38,0.00031096,120]
[420073380,1775649076032,-1000.0,0.000311,120]
[420073381,1775649076042,-2000.0,0.000312,2]
[420073382,1775649076053,-1372.61,0.00031224,30]
[420073383,1775649076063,-1119.14,0.00031232,7]
[420073384,1775649076074,-918.6,0.00031232,7]
[420073385,1775649076085,-2238.84,0.00031296,7]
[420073386,1775649076096,-1000.0,0.000313,120]
[420073387,1775649076106,-151.0,0.000313,5]
[420073388,1775649076117,-5533.0,0.000313,3]
[420073389,1775649076128,-500.0,0.00031332,120]
[420073390,1775649076138,-3899.38,0.00031342,120]
[420073391,1775649076149,-593.38,0.00031342,120]
[420073392,1775649076159,-1372.61,0.00031378,30]
[420073393,1775649076170,-152.0,0.00031382,6]
[420073394,1775649076179,-1000.0,0.000314,120]
[420073395,1775649076189,-1001.21449762,0.000314,30]
[420073396,1775649076199,-20024.35353177,0.0003143,4]
[420073397,1775649076208,-115474.92486163,0.0003143,2]
[420073398,1775649076220,-1000.0,0.00031438,120]
[420073399,1775649076232,-25000.0,0.0003147,3]
[420073400,1775649076243,-2000.0,0.00031498,4]
[420073401,1775649076254,-199.36502316,0.000315,2]
[420073402,1775649076266,-150.0,0.000315,2]
[420073403,1775649076276,-157.0,0.000315,30]
[420073404,1775649076287,-2000.0,0.000315,30]
[420073405,1775649076298,-1000.0,0.000315,2]
[420073406,1775649076309,-2823.3549166,0.000315,30]
[420073407,1775649076319,-11344.7579,0.000315,2]
[420073408,1775649076329,-483.7961,0.000315,2]
[420073409,1775649076339,-14986.498,0.000315,2]
[420073410,1775649076350,-500.0,0.00031507,120]
[420073411,1775649076360,-500.0,0.00031507,90]
[420073412,1775649076371,-250.0,0.00031507,60]
[420073413,1775649076382,-250.0,0.00031507,30]
[420073414,1775649076393,-1124.32404273,0.00031507,5]
[420073415,1775649076404,-350.0,0.00031507,30]
[420073416,1775649076415,-350.0,0.00031507,30]
[420073417,1775649076426,-330.0,0.00031507,30]
[420073418,1775649076437,-350.0,0.00031507,30]
[420073419,1775649076447,-350.0,0.00031507,30]
[420073420,1775649076458,-233.0,0.00031507,30]
[420073421,1775649076469,-1372.61,0.00031531,30]
[420073422,1775649076479,-13673.09,0.00031563,92]
[420073423,1775649076490,-3899.38,0.00031589,120]
[420073424,1775649076501,-344.38443396,0.000316,30]
[420073425,1775649076511,-593.38,0.00031671,120]
[420073426,1775649076522,-1372.61,0.00031684,30]
[420073427,1775649076533,-1098.8,0.00031697,2]
[420073428,1775649076544,-193.29806552,0.000317,30]
[420073429,1775649076555,-5533.0,0.000317,5]
[420073430,1775649076565,-1500.0,0.00031742,120]
[420073431,1775649076576,-700.0,0.00031748,14]
[420073432,1775649076586,-1000.0,0.00031781,120]
[420073433,1775649076597,-150.0,0.00031834,2]
[420073434,1775649076607,-3899.38,0.00031836,120]
[420073435,1775649076617,-593.38,0.00031836,120]
[420073436,1775649076628,-1372.61,0.00031837,30]
[420073437,1775649076639,-1000.0,0.00031863,120]
[420073438,1775649076650,-608.59766134,0.000319,2]
[420073439,1775649076661,-370.12386351,0.000319,6]
[420073440,1775649076672,-152.16222249,0.000319,2]
[420073441,1775649076683,-369.99709421,0.000319,2]
[420073442,1775649076693,-5977.26960675,0.000319,2]
[420073443,1775649076705,-1116.0,0.00031961,5]
[420073444,1775649076716,-1372.61,0.0003199,30]
[420073445,1775649076727,-151.0,0.00031997,7]
[420073446,1775649076738,-151.0,0.00031997,7]
[420073447,1775649076749,-1212202.48351006,0.00032,120]
[420073448,1775649076760,-1353.81216436,0.00032,120]
[420073449,1775649076772,-300.0,0.00032,7]
[420073450,1775649076783,-1384.38568516,0.00032,120]
[420073451,1775649076794,-400.66935866,0.00032,120]
[420073452,1775649076805,-229.38378983,0.00032,120]
[420073453,1775649076815,-186.2469499,0.00032,120]
[420073454,1775649076828,-2402.68974009,0.00032,120]
[420073455,1775649076839,-1124.85818327,0.00032,120]
[420073456,1775649076850,-323.13119507,0.00032,120]
[420073457,1775649076861,-408.46799135,0.00032,120]
[420073458,1775649076872,-801.84279956,0.00032,120]
[420073459,1775649076883,-223.88690886,0.00032,120]
[420073460,1775649076894,-176.0608843,0.00032,120]
[420073461,1775649076905,-1000.0,0.00032,120]
[420073462,1775649076915,-2934986.62109027,0.00032,2]
[420073463,1775649078995,-1.09489628,0.00032,2]
[420073464,1775649079498,-2471.0,0.00018387,2]
[420073465,1775649079507,-1529.98293678,0.00021387,2]
[420073466,1775649079522,-337.54505367,0.00021387,2]
[420073467,1775649079534,-603.47200955,0.00021387,2]
[420073468,1775649079544,-1855.08091573,0.00024387,2]
[420073469,1775649079743,-310.546,0.00024387,2]
[420073470,1775649261304,2524.0,0.000161,120]
[420073480,1775650037264,5000.0,0.000161,120]
[420073481,1775650060971,2975.2123007,8e-05,2]
[420073483,1775650198702,394.15138645,7.888e-05,2]
[420073493,1775650234267,-489.18139785,0.0001,2]
[420073494,1775650234277,-17815.67883391,0.0001,2]
[420073495,1775650234287,-348.68212697,0.0001,2]
[420073496,1775650234297,-261.69532138,0.000101,2]
[420073497,1775650234306,-250.0,0.00010471,2]
[420073498,1775650234315,-10556.42418396,0.000107,2]
[420073499,1775650238772,-163.66979355,0.00010699,2]
[420073500,1775650238782,-231.51992625,0.00010699,2]
[420073501,1775650238791,-500.0,0.00010699,2]
[420073502,1775650238801,-500.0,0.00010699,2]
[420073503,1775650238811,-562.70809678,0.00010699,2]
[420073504,1775650238821,-361.92110116,0.00010699,2]
[420073505,1775650238831,-12897.72981631,0.000107,2]
[420073506,1775650241469,-4034819.98288336,0.000107,2]
[420073507,1775650241479,-1992.42320225,0.00010742,2]
[420073508,1775650241489,-150.05,0.00010842,2]
[420073509,1775650241499,-154.20387248,0.00011,2]
[420073510,1775650241509,-600.0,0.00011,2]
[420073511,1775650241519,-600.0,0.00011,2]
[420073512,1775650241528,-300.0,0.00011,2]
[420073513,1775650241538,-300.0,0.00011,2]
[420073514,1775650241547,-300.0,0.00011,2]
[420073515,1775650241557,-300.0,0.00011,2]
[420073516,1775650241566,-265.76204215,0.00011,2]
[420073517,1775650241576,-600.0,0.0001111,2]
[420073518,1775650241586,-195.0,0.0001111,2]
[420073519,1775650241596,-4958.18890865,0.0001111,2]
[420073520,1775650241606,-250.0,0.0001111,2]
[420073521,1775650241616,-296.60925925,0.00011367,2]
[420073522,1775650241626,-600.0,0.00011677,2]
[420073523,1775650241636,-600.0,0.00011677,2]
[420073524,1775650241645,-160.46055702,0.000118,3]
[420073525,1775650241654,-9891.79784251,0.00012,7]
[420073526,1775650241663,-195.0,0.00012095,2]
[420073527,1775650241673,-200.0,0.00012459,2]
[420073528,1775650241683,-195.0,0.00012597,2]
[420073529,1775650241692,-195.0,0.0001298,2]
[420073530,1775650241701,-250.0,0.0001298,2]
[420073531,1775650241711,-84754.46287592,0.00012999,2]
[420073532,1775650242058,-250.0,0.00013,2]
[420073533,1775650242098,-3620.21391383,0.0001305,2]
[420073534,1775650242108,-505.0,0.000131,2]
[420073535,1775650242117,-9999.99,0.00013104,2]
[420073536,1775650242127,-4522.12,0.00013104,2]
[420073537,1775650242136,-9540.39,0.00013104,2]
[420073538,1775650242146,-7611.53,0.00013104,2]
[420073539,1775650242156,-9999.99,0.00013104,2]
[420073540,1775650242165,-299.99,0.00013104,2]
[420073541,1775650242175,-23317.67,0.00013104,2]
[420073542,1775650242184,-999.99,0.00013104,2]
[420073543,1775650242194,-150.99,0.00013104,2]
[420073544,1775650242203,-150.99,0.00013104,2]
[420073545,1775650242213,-166.66,0.00013699,2]
[420073546,1775650242223,-150.0,0.000137,2]
[420073547,1775650242232,-166.66,0.00013836,2]
[420073548,1775650242242,-166.66,0.00013973,2]
[420073549,1775650242252,-1500.0,0.00014,2]
[420073550,1775650242261,-166.66,0.0001411,2]
[420073551,1775650242271,-505.0,0.00014197,2]
[420073552,1775650242280,-166.66,0.00014247,2]
[420073553,1775650242291,-2361.38,0.00014332,2]
[420073554,1775650242300,-166.66,0.00014384,2]
[420073555,1775650242310,-7323.30859515,0.0001439,2]
[420073556,1775650242320,-760.0,0.00014517,2]
[420073557,1775650242329,-160.0,0.00014649,2]
[420073558,1775650242340,-250.0,0.00014795,2]
[420073559,1775650242351,-171.1691,0.000149,2]
[420073560,1775650242362,-300.0,0.00015,2]
[420073561,1775650242371,-2068.01430131,0.00015,2]
[420073562,1775650242381,-2756.92717347,0.00015,2]
[420073563,1775650242391,-1007.07827575,0.00015,2]
[420073564,1775650242400,-2000.0,0.000151,2]
[420073565,1775650242410,-5707.27,0.00015178,2]
[420073566,1775650242419,-151.0,0.00015191,2]
[420073567,1775650242429,-151.0,0.00015191,2]
[420073568,1775650242439,-151.0,0.00015191,2]
[420073569,1775650242448,-151.0,0.00015191,2]
[420073570,1775650242458,-151.0,0.00015191,2]
[420073571,1775650242469,-151.0,0.00015191,2]
[420073572,1775650242478,-151.0,0.00015191,2]
[420073573,1775650242488,-151.0,0.00015191,2]
[420073574,1775650242497,-151.0,0.00015191,2]
[420073575,1775650242507,-151.0,0.00015191,2]
[420073576,1775650242517,-151.0,0.00015191,2]
[420073577,1775650242527,-155.45941456,0.00015191,2]
[420073578,1775650242537,-505.0,0.00015293,3]
[420073579,1775650242547,-7013.84,0.00015471,2]
[420073580,1775650242556,-25000.0,0.0001554,3]
[420073581,1775650242566,-185.06193176,0.000159,2]
[420073582,1775650242575,-184.99854711,0.000159,2]
[420073583,1775650242585,-152.16222249,0.000159,2]
[420073584,1775650242595,-2576.9999187,0.000159,2]
[420073585,1775650242604,-3935181.89005372,0.00016,2]
[420073586,1775650242711,-8804.53132951,0.00016,2]
[420073587,1775650242722,-8947.21879473,0.00016,2]
[420073588,1775650242734,-8943.78386462,0.00016,2]
[420073589,1775650242745,-9077.54866152,0.00016,2]
[420073590,1775650242757,-2783.91288589,0.00016,2]
[420073598,1775650244467,-2564.41650307,0.00016,2]
[420073602,1775650247022,-1992.42320225,0.00013321,2]
[420073603,1775650247032,-1915.72155496,0.00016,2]
[420073605,1775650595826,152.47,6.188e-05,2]
[420073606,1775650596002,152.47,6.601e-05,2]
[420073607,1775650596199,152.47,7.013e-05,2]
[420073608,1775650596393,152.47,7.426e-05,2]
[420073609,1775650596591,152.47,7.838e-05,2]
[420073610,1775650596782,152.47,8.251e-05,2]